bitfinex/quotes_ETHUSD_20220113
["timestamp","ask_amount","ask_price","bid_price","bid_amount"]
[1642101029673,0.045463,3288.7,3287.5,0.1216]
[1642101029674,17.89,3287.9,3287.5,0.1216]
[1642101029878,17.89,3287.9,3287.4,11.56549409]
[1642101030276,18.49,3287.9,3287.5,0.00909477]
[1642101030476,0.6,3287.9,3287.5,0.00909477]
[1642101030683,0.6,3287.9,3287.4,0.0096632]
[1642101030879,0.3,3287.9,3287.4,0.0096632]
[1642101032345,18.0116,3287.8,3287.4,0.0096632]
[1642101032545,18.3116,3287.8,3287.4,0.0096632]
[1642101032742,0.4216,3287.8,3287.4,0.0096632]
[1642101032942,0.3,3287.9,3287.2,0.01080004]
[1642101032943,0.7216,3287.9,3287.2,0.01080004]
[1642101033142,0.7216,3287.9,3287.4,0.5749876]
[1642101033844,0.167063,3288.3,3287.5,0.7603607]
[1642101034242,0.045463,3288.3,3287.7,0.06302045]
[1642101034442,0.1216,3288.2,3287.6,0.02144683]
[1642101034643,0.1216,3288.3,3287.8,0.0073895]
[1642101034844,0.1216,3288.4,3287.7,0.00795793]
[1642101035095,0.045463,3288.3,3287.7,0.00795793]
[1642101035279,17.89,3288.1,3287.7,0.00795793]
[1642101035478,17.89,3287.9,3287.7,0.00795793]
[1642101035879,18.19,3287.9,3287.7,0.00795793]
[1642101036081,0.3,3287.9,3287.7,0.00795793]
[1642101036580,0.1216,3288.2,3287.6,0.00852635]
[1642101037587,0.1216,3288.2,3287.8,0.7603032]
[1642101037783,0.1216,3288.2,3288.0,1.29570196]
[1642101037981,0.1216,3288.2,3287.8,0.7603032]
[1642101037982,0.045463,3288.3,3287.9,0.00682108]
[1642101038183,0.1216,3288.2,3288.1,0.00568423]
[1642101038383,3.2716,3288.2,3287.8,0.0073895]
[1642101038581,3.8716,3288.2,3287.8,0.0073895]
[1642101039026,1.0,3288.1,3287.8,0.0073895]
[1642101039329,0.045463,3288.6,3287.9,9.95]
[1642101039527,0.045463,3289.2,3288.6,0.46801812]
[1642101039729,0.045463,3289.2,3288.0,0.00625266]
[1642101039926,0.045463,3289.2,3288.7,0.00227369]
[1642101040134,1.35510171,3288.8,3288.1,1.28400821]
[1642101040327,1.35510171,3288.8,3288.0,0.00625266]
[1642101040529,17.89,3288.7,3288.2,0.00511581]
[1642101040727,1.35510171,3288.8,3288.2,0.54698009]
[1642101041129,0.3,3288.7,3288.3,0.00454739]
[1642101041330,1.045463,3289.2,3288.3,0.00454739]
[1642101041530,0.1011,3289.1,3288.3,0.00454739]
[1642101041731,17.9911,3289.1,3288.3,0.00454739]
[1642101042131,1.55269971,3288.8,3288.3,0.00454739]
[1642101042334,17.89,3288.7,3288.3,0.00454739]
[1642101042583,0.3,3288.7,3288.3,0.00454739]
[1642101043082,17.89,3288.6,3288.3,0.00454739]
[1642101044383,0.3,3288.7,3288.3,0.00454739]
[1642101045087,0.3,3288.8,3288.3,0.00454739]
[1642101045287,1.101,3289.1,3288.3,0.00454739]
[1642101045288,1.701,3289.1,3288.3,0.00454739]
[1642101045484,0.701,3289.1,3288.3,0.00454739]
[1642101045684,17.89,3289.0,3288.3,0.00454739]
[1642101045885,0.101,3288.9,3288.4,2.61440057]
[1642101046323,0.101,3288.9,3288.5,0.00341054]
[1642101047125,0.101,3289.0,3288.6,0.03896969]
[1642101047327,0.101,3289.0,3288.4,0.00397896]
[1642101047526,0.101,3289.0,3288.7,0.00227369]
[1642101047527,17.89,3288.9,3288.7,0.00227369]
[1642101047727,17.89,3288.9,3288.4,0.00397896]
[1642101047728,18.19,3288.9,3288.4,0.00397896]
[1642101048030,18.19,3288.9,3288.3,0.00454739]
[1642101048031,0.3,3288.7,3288.3,0.00454739]
[1642101048629,0.3,3288.9,3288.3,0.00454739]
[1642101049029,17.89,3288.8,3288.3,0.00454739]
[1642101049230,0.3,3288.9,3288.3,0.00454739]
[1642101049231,0.401,3288.9,3288.3,0.00454739]
[1642101050379,0.401,3288.9,3288.4,2.61440133]
[1642101050585,17.89,3288.8,3288.4,2.61440133]
[1642101050883,0.045463,3288.5,3288.4,2.61440133]
[1642101051080,0.146463,3288.5,3288.4,2.61440133]
[1642101051281,0.146463,3288.5,3288.4,2.61838029]
[1642101051484,18.336463,3288.5,3288.4,0.00397896]
[1642101051782,19.636463,3288.5,3288.2,0.00511581]
[1642101051982,1.28410328,3288.4,3288.2,0.00511581]
[1642101052586,17.89,3288.3,3288.2,0.00511581]
[1642101052985,18.49,3288.3,3288.2,0.00511581]
[1642101053587,15.0218,3288.3,3288.2,0.00511581]
[1642101054035,16.0218,3288.3,3288.2,0.00511581]
[1642101054236,17.59871804,3288.3,3288.2,0.00511581]
[1642101054435,17.5646,3288.3,3287.1,0.01136847]
[1642101054636,1.47162971,3287.4,3287.1,0.01136847]
[1642101055035,15.18234,3287.9,3287.0,0.48059701]
[1642101055239,15.18234,3287.9,3287.1,0.13296847]
[1642101055240,0.045463,3287.6,3287.1,0.13296847]
[1642101055435,15.0218,3287.9,3287.1,0.13296847]
[1642101055635,0.045463,3287.6,3287.2,2.62594428]
[1642101055838,15.067263,3287.9,3287.2,2.62594428]
[1642101056036,16.18126921,3287.9,3287.3,0.01023162]
[1642101056234,14.7218,3287.9,3287.3,0.01023162]
[1642101056435,14.7218,3287.9,3287.3,1.53090782]
[1642101056734,14.4218,3287.9,3287.3,1.53090782]
[1642101056936,14.4218,3287.9,3287.4,0.0096632]
[1642101057136,14.4218,3287.9,3287.5,0.1216]
[1642101057487,0.438,3288.7,3287.5,0.1216]
[1642101057488,0.101,3288.8,3287.8,0.0543154]
[1642101057780,0.101,3289.0,3288.4,0.50791043]
[1642101057979,0.101,3289.0,3288.5,0.04977652]
[1642101058180,0.101,3289.0,3288.5,0.00341054]
[1642101058382,1.55719171,3288.7,3288.6,0.00284212]
[1642101058579,1.55719171,3288.7,3288.5,0.00341054]
[1642101059181,2.15719171,3288.7,3288.5,0.00341054]
[1642101059385,0.00113685,3289.3,3288.5,0.00341054]
[1642101059386,0.00113685,3289.3,3288.6,7.67756054]
[1642101059583,0.00113685,3289.3,3289.2,9.96256016]
[1642101059983,0.00113685,3289.3,3289.2,10.96256016]
[1642101060184,0.06788406,3289.3,3289.2,10.96256016]
[1642101060383,0.06788406,3289.3,3289.2,9.95]
[1642101060384,1.30262112,3289.3,3289.2,9.95]
[1642101060782,19.19262112,3289.3,3288.9,0.13819997]
[1642101060988,19.19262112,3289.3,3288.7,2.61613938]
[1642101061233,0.045463,3288.8,3288.7,2.61613938]
[1642101061437,0.045463,3288.8,3288.7,2.61386569]
[1642101061834,0.045463,3289.0,3288.7,2.61386569]
[1642101062033,0.045463,3289.1,3288.7,3.37399029]
[1642101062234,0.3,3289.2,3288.8,0.00170527]
[1642101062435,1.60262112,3289.3,3288.8,0.00170527]
[1642101062436,0.045463,3289.0,3288.8,0.00170527]
[1642101062933,0.101,3289.2,3288.8,0.00170527]
[1642101063237,0.045463,3288.9,3288.8,0.00170527]
[1642101063539,0.045463,3288.9,3288.5,0.00341054]
[1642101063835,4.245463,3288.6,3288.5,0.00341054]
[1642101064039,4.245463,3288.6,3288.2,0.1216]
[1642101064040,4.845463,3288.6,3288.3,0.00454739]
[1642101064235,17.89,3288.4,3288.3,0.00454739]
[1642101064435,18.335033,3288.4,3287.9,1.53867165]
[1642101064635,18.335033,3288.4,3287.5,1.53867165]
[1642101064636,0.045463,3288.0,3287.5,1.53867165]
[1642101064834,0.045463,3287.6,3287.5,1.53867165]
[1642101065087,0.045463,3287.6,3287.5,6.43867165]
[1642101065283,0.045463,3287.6,3287.5,6.44776642]
[1642101065482,0.09826,3288.3,3287.7,0.49801905]
[1642101065685,17.98826,3288.3,3287.7,0.49801905]
[1642101065884,0.045463,3287.8,3287.7,5.44801905]
[1642101066088,1.0,3288.2,3287.7,0.49801905]
[1642101066284,1.0,3288.2,3287.7,0.00795793]
[1642101066285,0.045463,3288.0,3287.7,0.00795793]
[1642101066684,0.045463,3287.9,3287.6,0.00852635]
[1642101067485,0.345463,3287.9,3287.6,0.00852635]
[1642101067885,0.3,3287.9,3287.7,0.59835597]
[1642101068284,0.3,3287.9,3287.8,0.0073895]
[1642101068485,0.345463,3288.0,3287.8,0.0073895]
[1642101068486,0.3,3288.0,3287.8,0.0073895]
[1642101068734,0.045463,3288.0,3287.8,0.0073895]
[1642101069533,1.87632013,3288.0,3287.8,0.0073895]
[1642101069734,0.3,3288.0,3287.8,0.0073895]
[1642101069938,0.3,3287.9,3287.8,0.0073895]
[1642101070236,0.645463,3288.2,3287.8,0.0073895]
[1642101070434,0.645463,3288.2,3287.9,0.0676952]
[1642101070636,18.235463,3288.2,3287.8,0.0073895]
[1642101070835,1.12531204,3288.0,3287.7,0.7603559]
[1642101071039,0.3,3287.9,3287.7,0.7603559]
[1642101071244,0.1015,3288.5,3287.8,0.0073895]
[1642101071436,0.045463,3288.4,3287.8,0.0073895]
[1642101071635,0.3,3288.7,3287.8,0.0073895]
[1642101071835,0.3,3288.7,3288.0,0.4895289]
[1642101072035,19.20367303,3288.3,3288.0,0.4895289]
[1642101072236,19.20367303,3288.3,3288.1,0.00568423]
[1642101072491,19.50367303,3288.3,3288.1,0.00568423]
[1642101073084,0.045463,3288.2,3288.1,0.00568423]
[1642101073483,0.045463,3288.2,3287.7,0.1216]
[1642101073683,19.54913603,3288.3,3287.7,0.12955793]
[1642101074486,1.20602159,3287.8,3287.7,0.12955793]
[1642101074685,1.50602159,3287.8,3287.7,0.12955793]
[1642101074886,1.49792225,3287.8,3287.7,5.12955793]
[1642101075286,1.49792225,3287.8,3287.7,0.12955793]
[1642101075691,19.38792225,3287.8,3287.7,0.12955793]
[1642101075887,19.43338525,3287.8,3287.7,0.00795793]
[1642101076332,19.43338525,3287.8,3287.4,0.0096632]
[1642101076533,0.045463,3287.6,3287.4,0.0096632]
[1642101076831,0.045463,3287.6,3287.4,0.05796624]
[1642101077030,1.49792225,3287.8,3287.4,0.05796624]
[1642101077231,1.54338525,3287.8,3287.5,0.00909477]
[1642101077631,1.54338525,3287.8,3287.4,0.0096632]
[1642101077831,1.54338525,3287.8,3287.3,0.7604611]
[1642101078031,1.54338525,3287.8,3287.3,0.8820611]
[1642101078231,1.54338525,3287.8,3287.4,0.0096632]
[1642101079036,1.54338525,3287.8,3287.4,2.62456747]
[1642101079234,1.49792225,3287.8,3287.5,0.04738223]
[1642101079432,1.49792225,3287.8,3287.5,0.00909477]
[1642101079632,1.49792225,3287.8,3287.6,0.00852635]
[1642101079834,1.49792225,3287.8,3287.5,0.00909477]
[1642101080083,1.49792225,3287.8,3287.4,0.0096632]
[1642101080478,1.49792225,3287.8,3287.7,2.61490427]
[1642101080880,1.49792225,3287.8,3287.7,2.6228622]
[1642101081482,0.29190066,3287.8,3287.7,2.6228622]
[1642101081688,0.101,3288.2,3287.8,0.08106306]
[1642101081885,0.101,3288.2,3287.7,0.00795793]
[1642101081886,17.89,3288.9,3288.3,0.028101]
[1642101082084,17.89,3288.9,3288.8,5.15]
[1642101082483,17.89,3288.9,3288.8,5.15170527]
[1642101083283,18.19,3288.9,3288.8,5.15170527]
[1642101083829,18.19,3288.9,3288.8,5.60190169]
[1642101084029,0.3,3288.9,3288.8,5.60190169]
[1642101084233,0.3,3288.9,3288.8,7.10861507]
[1642101084429,0.06674721,3289.3,3289.0,0.05487758]
[1642101084631,0.06674721,3289.3,3289.2,8.991313]
[1642101085431,0.06674721,3289.3,3289.2,0.041313]
[1642101085832,0.06674721,3289.3,3289.2,5.30621727]
[1642101086231,0.06674721,3289.3,3289.2,5.26490427]
[1642101087235,0.06674721,3289.3,3289.2,5.41398627]
[1642101087693,0.06674721,3289.3,3289.2,5.29238627]
[1642101088096,0.06674721,3289.3,3289.2,2.64238627]
[1642101088294,0.11221021,3289.3,3289.2,2.61490427]
[1642101088995,19.58451026,3289.3,3289.2,2.61490427]
[1642101089194,0.41221021,3289.3,3289.2,2.61490427]
[1642101089595,0.06674721,3289.3,3289.2,2.61490427]
[1642101089795,0.06674721,3289.3,3289.2,3.4]
[1642101089995,0.06674721,3289.3,3289.2,4.0035444]
[1642101090398,0.045463,3289.7,3289.3,6.3]
[1642101090596,0.045463,3289.8,3289.3,6.3]
[1642101090795,1.0,3290.3,3289.0,2.61490427]
[1642101090796,0.10441054,3289.7,3289.0,2.61490427]
[1642101090999,0.045463,3289.6,3289.2,2.61490427]
[1642101091238,0.00284212,3289.6,3289.2,2.61490427]
[1642101091438,0.045463,3289.3,3289.2,2.61490427]
[1642101091835,17.89,3289.2,3288.8,2.61660954]
[1642101092037,0.045463,3288.9,3288.8,2.61660954]
[1642101092237,0.045463,3288.9,3288.8,2.61490427]
[1642101092734,27.99523289,3288.9,3288.7,2.61490427]
[1642101092934,24.86110187,3288.8,3288.7,2.61490427]
[1642101093134,25.20656487,3288.8,3288.7,2.61490427]
[1642101093334,25.20656487,3288.8,3288.7,2.61717796]
[1642101093335,25.64456487,3288.8,3288.7,2.61717796]
[1642101093534,26.64456487,3288.8,3288.7,2.61717796]
[1642101093734,26.64456487,3288.8,3288.3,1.53867165]
[1642101093735,3.55,3288.7,3288.3,1.53867165]
[1642101093936,21.77123108,3288.6,3287.9,1.53867165]
[1642101094137,21.77123108,3288.6,3288.4,0.00170527]
[1642101094138,1.76048,3288.5,3288.4,0.00170527]
[1642101094337,22.18953379,3288.5,3288.4,0.00170527]
[1642101094538,20.396943,3288.5,3288.4,0.00170527]
[1642101095780,20.834943,3288.5,3288.4,0.00170527]
[1642101096181,20.834943,3288.5,3287.7,0.00568424]
[1642101096380,0.76054,3287.9,3287.7,0.00568424]
[1642101096581,17.935463,3287.8,3287.7,0.00568424]
[1642101096780,19.14037168,3287.8,3287.7,0.00568424]
[1642101097382,1.25037168,3287.8,3287.5,0.00682108]
[1642101097583,0.76052,3287.7,3287.5,0.00682108]
[1642101097783,1.82102,3287.7,3287.5,0.00682108]
[1642101097985,0.3,3287.7,3287.5,0.00682108]
[1642101098384,1.55037168,3287.8,3287.4,0.00738951]
[1642101099431,0.345463,3287.8,3287.4,0.00738951]
[1642101099631,0.3,3287.8,3287.4,0.00738951]
[1642101099834,0.045463,3288.1,3287.4,0.00738951]
[1642101100232,1.49836,3288.4,3287.4,0.00738951]
[1642101100430,1.49836,3288.4,3287.5,0.1216]
[1642101100431,1.40777706,3288.0,3287.5,0.1216]
[1642101100634,0.045463,3287.8,3287.5,0.1216]
[1642101100931,1.59936,3288.4,3287.6,0.00625266]
[1642101100932,0.045463,3287.9,3287.6,0.00625266]
[1642101101233,0.045463,3287.8,3287.6,0.00625266]
[1642101101433,0.3,3288.3,3287.6,0.00625266]
[1642101101734,1.2688254,3287.9,3287.6,0.00625266]
[1642101102034,0.045463,3287.8,3287.6,0.00625266]
[1642101102684,0.045463,3287.8,3287.5,0.00682108]
[1642101104689,1.5688254,3287.9,3287.5,0.00682108]
[1642101104690,0.045463,3287.6,3287.5,0.00682108]
[1642101105487,1.5688254,3287.9,3287.5,0.00682108]
[1642101105688,0.045463,3287.8,3287.5,0.00682108]
[1642101105890,1.5688254,3287.9,3287.6,0.04409393]
[1642101105891,0.345463,3287.9,3287.6,0.04409393]
[1642101106102,5.8818,3288.8,3287.5,0.03409908]
[1642101106103,0.101,3288.7,3287.5,0.03409908]
[1642101106341,5.8818,3288.8,3288.3,0.5524562]
[1642101106342,5.9828,3288.8,3288.3,0.5524562]
[1642101106539,5.8818,3288.8,3288.3,0.5524562]
[1642101106735,5.8818,3288.8,3287.8,0.8818]
[1642101106937,1.12289849,3288.5,3287.8,1.8818]
[1642101107142,1.12289849,3288.5,3287.9,0.00454739]
[1642101107338,1.12289849,3288.5,3288.0,0.1216]
[1642101107745,1.42289849,3288.5,3288.1,0.00341054]
[1642101108339,1.42289849,3288.5,3288.1,0.59696305]
[1642101108541,1.42289849,3288.5,3288.1,0.71856305]
[1642101108838,1.42289849,3288.5,3288.2,0.00284212]
[1642101109239,0.3,3288.5,3288.2,0.00284212]
[1642101109639,0.3,3288.7,3288.2,0.00284212]
[1642101109839,0.3,3288.7,3288.2,0.76301632]
[1642101110085,0.3,3288.7,3288.2,0.00284212]
[1642101110283,5.8818,3288.8,3288.3,0.0022737]
[1642101110480,5.8818,3288.8,3288.2,0.00284212]
[1642101110680,5.8818,3288.8,3288.3,0.0022737]
[1642101110880,5.8818,3288.8,3288.2,0.00284212]
[1642101111281,23.7718,3288.8,3288.2,0.00284212]
[1642101111485,0.045463,3288.7,3288.2,0.00284212]
[1642101111680,0.045463,3288.6,3288.2,0.00284212]
[1642101111882,0.045463,3288.6,3288.1,1.53867165]
[1642101111883,1.12803872,3288.5,3288.1,1.53867165]
[1642101112083,1.42803872,3288.5,3288.2,0.00284212]
[1642101113184,1.42803872,3288.5,3288.0,0.00397897]
[1642101114335,0.045463,3288.2,3288.0,0.00397897]
[1642101114532,1.52903872,3288.5,3288.1,2.61432362]
[1642101114533,1.42803872,3288.5,3288.1,2.61432362]
[1642101114734,0.045463,3288.4,3288.1,2.61432362]
[1642101114934,1.42803872,3288.5,3288.2,0.00284212]
[1642101115834,3.595463,3288.3,3288.2,0.00284212]
[1642101116033,5.195463,3288.3,3288.2,0.00284212]
[1642101116435,23.085463,3288.3,3288.2,0.00284212]
[1642101116634,18.535463,3288.3,3288.2,0.00284212]
[1642101116832,18.535463,3288.3,3288.0,0.00397897]
[1642101117034,0.045463,3288.1,3288.0,0.00397897]
[1642101118281,0.045463,3288.2,3288.1,0.05222027]
[1642101118480,0.146563,3288.2,3288.1,3.95]
[1642101118683,0.146563,3288.2,3288.1,3.95341054]
[1642101119482,0.146563,3288.2,3288.1,6.56773416]
[1642101119684,0.045463,3288.2,3288.1,6.56773416]
[1642101120887,0.101,3288.4,3288.1,6.56773416]
[1642101121088,0.045463,3288.3,3288.1,6.56773416]
[1642101121333,1.72803872,3288.5,3288.1,6.56773416]
[1642101121334,1.72803872,3288.5,3288.2,0.00284212]
[1642101121733,4.145463,3288.3,3288.2,0.00284212]
[1642101121934,23.174463,3288.3,3288.2,2.61716574]
[1642101122133,23.073463,3288.3,3288.2,2.61716574]
[1642101122833,18.973463,3288.3,3288.2,2.61716574]
[1642101123236,18.535463,3288.3,3288.2,0.00284212]
[1642101123634,18.535463,3288.3,3287.7,0.00568424]
[1642101123835,0.045463,3288.0,3287.7,0.00568424]
[1642101124734,1.23609775,3287.9,3287.7,0.00568424]
[1642101124982,1.53609775,3287.9,3287.7,0.00568424]
[1642101125182,1.53609775,3287.9,3287.8,2.61432362]
[1642101125584,1.53609775,3287.9,3287.8,2.61943943]
[1642101126584,1.58156075,3287.9,3287.8,2.61943943]
[1642101126784,0.3,3287.9,3287.8,2.61943943]
[1642101126983,0.045463,3288.0,3287.8,2.61943943]
[1642101127385,0.045463,3288.0,3287.9,0.00454739]
[1642101127783,1.57905389,3288.0,3287.9,0.00454739]
[1642101128384,1.57905389,3288.0,3287.9,2.61887101]
[1642101129432,19.87005389,3288.0,3287.9,2.61887101]
[1642101129634,21.30805389,3288.0,3287.9,2.61887101]
[1642101131134,0.3,3287.9,3287.4,0.1216]
[1642101131335,0.045463,3287.5,3287.4,0.1216]
[1642101131533,18.373463,3287.5,3287.4,0.1216]
[1642101131935,19.37813379,3287.5,3287.4,0.1216]
[1642101132334,20.13877379,3287.5,3287.4,0.1216]
[1642101137932,2.24877379,3287.5,3287.4,0.1216]
[1642101138137,7.52523718,3288.2,3287.3,0.55729901]
[1642101138138,0.07288418,3288.2,3287.3,0.55729901]
[1642101138336,17.89,3288.6,3288.0,0.045463]
[1642101138532,0.00113685,3288.1,3288.0,0.045463]
[1642101139134,0.00113685,3288.1,3288.0,4.35]
[1642101140785,0.00113685,3288.1,3287.4,0.1216]
[1642101141184,0.00113685,3288.1,3287.5,0.00227369]
[1642101141387,17.89113685,3288.1,3287.6,0.1216]
[1642101141785,19.41212555,3288.1,3287.7,0.00113685]
[1642101141985,18.65164685,3288.1,3287.7,0.00113685]
[1642101142185,18.65164685,3288.1,3287.3,0.1216]
[1642101142186,19.31314075,3287.8,3287.6,0.00170527]
[1642101142386,19.31314075,3287.8,3287.4,0.00284212]
[1642101142585,17.89,3287.7,3287.4,0.00284212]
[1642101142986,0.3,3287.8,3287.4,0.00284212]
[1642101143188,0.00113685,3288.1,3287.4,0.00284212]
[1642101143189,0.00113685,3288.1,3287.5,0.1216]
[1642101143388,0.00113685,3288.1,3288.0,9.995463]
[1642101143589,0.00113685,3288.1,3288.0,10.62157973]
[1642101143835,0.00113685,3288.1,3288.0,11.62157973]
[1642101144237,0.00113685,3288.1,3288.0,12.83639818]
[1642101144433,0.00113685,3288.1,3288.0,10.62157973]
[1642101144636,0.00113685,3288.1,3288.0,11.38177883]
[1642101144836,0.00113685,3288.1,3288.0,12.26017883]
[1642101145938,0.00113685,3288.1,3288.0,13.02035883]
[1642101146337,0.00113685,3288.1,3288.0,12.26017883]
[1642101147139,0.00113685,3288.1,3288.0,1.31017883]
[1642101147337,0.00113685,3288.1,3288.0,0.045463]
[1642101147988,0.00113685,3288.1,3288.0,5.495463]
[1642101148190,1.29769435,3288.1,3288.0,5.495463]
[1642101148390,1.29769435,3288.1,3288.0,0.045463]
[1642101148593,1.59769435,3288.1,3288.0,0.045463]
[1642101148795,1.59769435,3288.1,3287.6,1.54037692]
[1642101149192,1.59769435,3288.1,3287.7,0.12273685]
[1642101149392,1.59769435,3288.1,3287.7,0.00113685]
[1642101149792,1.59769435,3288.1,3287.7,0.7603058]
[1642101150491,1.59769435,3288.1,3287.6,0.00170527]
[1642101151092,1.59769435,3288.1,3287.7,0.76026]
[1642101152145,1.59769435,3288.1,3287.8,2.61461317]
[1642101152437,3.12053632,3288.0,3287.8,2.61461317]
[1642101152638,1.0885,3288.0,3287.8,2.61461317]
[1642101152836,1.438,3287.9,3287.8,2.61461317]
[1642101153037,22.4598783,3287.9,3287.8,2.61461317]
[1642101153237,22.4598783,3287.9,3287.6,2.61631844]
[1642101153438,0.1006,3287.8,3287.6,2.61631844]
[1642101153639,0.1006,3287.8,3287.7,0.00113685]
[1642101153840,3.28708109,3287.8,3287.7,0.00113685]
[1642101154039,5.64765109,3287.8,3287.7,0.00113685]
[1642101154439,23.53765109,3287.8,3287.7,0.00113685]
[1642101155091,24.29823109,3287.8,3287.7,0.00113685]
[1642101157986,24.19763109,3287.8,3287.7,0.00113685]
[1642101159040,21.01115,3287.8,3287.7,0.00113685]
[1642101159236,20.01115,3287.8,3287.7,0.00113685]
[1642101159436,20.01115,3287.8,3287.2,0.00397896]
[1642101159437,0.76051,3287.6,3287.2,0.00397896]
[1642101159636,1.46025788,3287.5,3287.3,0.04928302]
[1642101159835,1.76025788,3287.5,3287.2,0.00397896]
[1642101160037,1.76025788,3287.5,3287.4,4.45284212]
[1642101160235,1.76025788,3287.5,3287.4,4.45]
[1642101160436,1.76025788,3287.5,3287.4,4.45284212]
[1642101161240,1.76025788,3287.5,3287.4,2.61745529]
[1642101162038,1.76025788,3287.5,3287.4,0.00284212]
[1642101162485,1.76025788,3287.5,3287.3,0.00341054]
[1642101163286,19.95025788,3287.5,3287.3,0.00341054]
[1642101164684,2.06025788,3287.5,3287.3,0.00341054]
[1642101164885,2.06025788,3287.5,3287.3,0.05330736]
[1642101165085,2.06025788,3287.5,3287.3,0.00341054]
[1642101165284,2.06025788,3287.5,3287.4,3.40284212]
[1642101165486,2.06025788,3287.5,3287.4,3.4]
[1642101165685,2.06025788,3287.5,3287.4,3.40284212]
[1642101166536,2.06025788,3287.5,3287.4,2.61745529]
[1642101166738,19.95025788,3287.5,3287.4,2.61745529]
[1642101167736,19.95025788,3287.5,3287.4,0.00284212]
[1642101168136,2.06025788,3287.5,3287.2,0.00397896]
[1642101168335,2.06025788,3287.5,3287.3,0.0650644]
[1642101168735,2.01025788,3287.5,3287.4,0.00284212]
[1642101169236,2.01025788,3287.5,3287.2,0.0471231]
[1642101169439,2.01025788,3287.5,3287.2,0.00397896]
[1642101169636,2.01025788,3287.5,3287.3,2.61802371]
[1642101169837,2.01025788,3287.5,3287.3,2.61461317]
[1642101170090,2.01025788,3287.5,3287.4,2.70284212]
[1642101170486,0.3,3287.5,3287.4,2.70284212]
[1642101170886,0.3,3287.8,3287.4,2.70284212]
[1642101171087,0.3,3287.9,3287.4,2.70284212]
[1642101171287,0.101,3287.8,3287.4,2.70284212]
[1642101171486,1.29303206,3287.5,3287.4,2.70284212]
[1642101171686,1.29303206,3287.5,3287.4,0.00284212]
[1642101171887,1.89303206,3287.5,3287.4,0.00284212]
[1642101172091,1.89303206,3287.5,3287.2,0.00397896]
[1642101172987,2.65356206,3287.5,3287.1,0.00454739]
[1642101173187,5.67436185,3287.5,3287.1,0.00454739]
[1642101173387,23.56436185,3287.5,3287.1,0.00454739]
[1642101173838,0.76061,3287.4,3287.1,0.00454739]
[1642101174236,1.52121,3287.4,3287.1,0.00454739]
[1642101174435,0.3,3287.3,3287.1,0.00454739]
[1642101175040,1.06063,3287.3,3287.1,0.00454739]
[1642101177587,1.76193,3287.3,3287.1,0.00454739]
[1642101178186,1.0013,3287.3,3287.1,0.00454739]
[1642101180688,1.0013,3287.3,3286.9,0.00568423]
[1642101180888,0.6,3287.3,3286.9,0.00568423]
[1642101181347,21.69896941,3287.2,3286.9,0.00568423]
[1642101181542,1.438,3287.1,3286.9,0.00568423]
[1642101181742,0.101,3287.0,3286.9,0.00568423]
[1642101181939,0.101,3287.0,3286.7,0.00682108]
[1642101181940,0.839,3287.0,3286.7,0.00682108]
[1642101182140,1.1211,3287.0,3286.7,0.00682108]
[1642101182342,1.4211,3287.0,3286.7,0.00682108]
[1642101182541,1.33015781,3286.9,3286.7,0.00682108]
[1642101182740,18.429,3286.8,3286.7,1.54549273]
[1642101182940,18.729,3286.8,3286.7,1.54549273]
[1642101183139,19.729,3286.8,3286.7,1.54549273]
[1642101184440,19.729,3286.8,3286.7,0.00682108]
[1642101187697,19.628,3286.8,3286.7,0.00682108]
[1642101188098,19.628,3286.8,3286.7,2.62255052]
[1642101188742,19.628,3286.8,3286.7,0.00682108]
[1642101190140,19.628,3286.8,3286.7,2.62255052]
[1642101191139,19.628,3286.8,3286.7,0.00682108]
[1642101192038,19.628,3286.8,3286.7,2.62255052]
[1642101192692,19.628,3286.8,3286.7,0.00682108]
[1642101193688,19.628,3286.8,3286.7,2.62255052]
[1642101193887,19.628,3286.8,3286.7,2.61572944]
[1642101194088,19.628,3286.8,3286.7,2.62255052]
[1642101194788,2.85175781,3286.9,3286.7,2.62255052]
[1642101194988,1.63015781,3286.9,3286.7,2.66801352]
[1642101195193,1.33015781,3286.9,3286.8,10.07785266]
[1642101196840,1.63015781,3286.9,3286.8,10.07785266]
[1642101197642,1.33015781,3286.9,3286.8,10.07785266]
[1642101198043,1.33015781,3286.9,3286.8,12.6935821]
[1642101201292,5.7093,3287.7,3286.8,12.6935821]
[1642101201492,6.4103,3287.7,3286.9,0.76046]
[1642101201689,6.4103,3287.7,3287.0,0.045463]
[1642101201892,7.17083,3287.7,3287.0,0.05057881]
[1642101202091,0.701,3287.7,3287.1,0.05001039]
[1642101202290,1.45876179,3287.6,3287.1,0.05001039]
[1642101202491,1.45876179,3287.6,3287.2,0.00397896]
[1642101203093,1.45876179,3287.6,3287.2,2.6197084]
[1642101203094,2.21930179,3287.6,3287.2,2.6197084]
[1642101203491,1.06057,3287.5,3287.3,0.00341054]
[1642101204139,1.06057,3287.5,3287.3,2.61913998]
[1642101204540,1.06057,3287.5,3287.4,0.00284212]
[1642101204940,0.3,3287.5,3287.4,0.00284212]
[1642101205140,1.75876179,3287.6,3287.4,0.00284212]
[1642101205942,1.75876179,3287.6,3287.3,0.00341054]
[1642101207342,1.75876179,3287.6,3287.3,2.66460298]
[1642101207792,1.75876179,3287.6,3287.4,0.00284212]
[1642101208397,1.75876179,3287.6,3287.4,2.61857156]
[1642101209395,1.75876179,3287.6,3287.5,2.61572944]
[1642101209596,19.94876179,3287.6,3287.5,2.61572944]
[1642101209796,20.04976179,3287.6,3287.5,2.61572944]
[1642101210099,21.04976179,3287.6,3287.5,2.61572944]
[1642101211002,21.48776179,3287.6,3287.5,0.77598828]
[1642101211251,21.48776179,3287.6,3286.6,1.53867165]
[1642101211252,4.4,3287.4,3286.6,1.58413465]
[1642101211445,9.95,3287.5,3286.6,1.53867165]
[1642101211446,0.76088,3286.9,3286.6,1.53867165]
[1642101211642,0.101,3286.8,3286.7,0.00397896]
[1642101211843,17.991,3286.8,3286.7,0.00397896]
[1642101212042,17.991,3286.8,3286.6,0.00454738]
[1642101212043,19.291,3286.8,3286.6,0.00454738]
[1642101212543,1.45097391,3286.7,3286.6,0.00454738]
[1642101212743,19.34097391,3286.7,3286.6,0.00454738]
[1642101212946,20.64086461,3286.7,3286.6,0.00454738]
[1642101213145,20.64086461,3286.7,3286.5,0.00511581]
[1642101213146,21.64086461,3286.7,3286.5,0.00511581]